fUSD/lending_fUSD_20260405
["ID","MTS","AMOUNT","RATE_DAILY","PERIOD"]
[419749450,1775353864151,-474.25,0.0002086,2]
[419749451,1775353864160,-500.0,0.00020889,8]
[419749452,1775353864170,-873.0,0.000209,2]
[419749453,1775353864180,-1121.0,0.000209,2]
[419749454,1775353864189,-1892.0,0.000209,2]
[419749455,1775353864199,-947.0,0.000209,2]
[419749456,1775353864218,-473.0,0.000209,2]
[419749457,1775353864230,-432.0,0.000209,2]
[419749458,1775353864240,-153.0,0.000209,2]
[419749459,1775353864251,-180.13817903,0.0002098,2]
[419749460,1775353864260,-500.0,0.00021,2]
[419749461,1775353864270,-1202.48983925,0.00021,2]
[419749462,1775353864279,-198.46366965,0.00021,2]
[419749463,1775353864289,-9240.47610541,0.00021,2]
[419749464,1775353864299,-450.0,0.00021,2]
[419749465,1775353864309,-201.75,0.00021005,2]
[419749466,1775353864319,-474.25,0.00021007,2]
[419749467,1775353864329,-474.25,0.00021154,2]
[419749468,1775353864339,-2371.0,0.00021224,2]
[419749469,1775353864350,-17709.0,0.00021224,2]
[419749470,1775353864360,-474.25,0.00021301,2]
[419749471,1775353864371,-1568.4,0.00021369,2]
[419749472,1775353864381,-550.0,0.0002137,2]
[419749473,1775353864391,-550.0,0.0002137,2]
[419749474,1775353864402,-474.25,0.00021448,2]
[419749475,1775353864413,-965.7966414,0.00021499,2]
[419749476,1775353864423,-223.91963574,0.000215,2]
[419749477,1775353864433,-58015.90148955,0.000215,2]
[419749478,1775353864444,-474.31692472,0.00021595,2]
[419749479,1775353864454,-474.26,0.00021595,2]
[419749480,1775353864464,-474.29,0.00021595,2]
[419749481,1775353864475,-3869.0,0.00021848,2]
[419749482,1775353864484,-205.77,0.00021894,2]
[419749483,1775353864495,-873.0,0.000219,2]
[419749484,1775353864506,-1121.0,0.000219,2]
[419749485,1775353864516,-1892.0,0.000219,2]
[419749486,1775353864527,-947.0,0.000219,2]
[419749487,1775353864537,-473.0,0.000219,2]
[419749488,1775353864547,-432.0,0.000219,2]
[419749489,1775353864558,-153.0,0.000219,2]
[419749490,1775353864568,-1000.0,0.00021918,2]
[419749491,1775353864579,-527.0,0.00021918,2]
[419749492,1775353864590,-5000.0,0.00021918,2]
[419749493,1775353864600,-3060.06,0.00021918,2]
[419749494,1775353864610,-151.0,0.00021918,2]
[419749495,1775353864621,-151.0,0.00021918,2]
[419749496,1775353864632,-151.0,0.00021918,2]
[419749497,1775353864642,-151.0,0.00021918,2]
[419749498,1775353864652,-151.0,0.00021918,2]
[419749499,1775353864663,-151.0,0.00021918,2]
[419749500,1775353864673,-151.0,0.00021918,2]
[419749501,1775353864683,-151.0,0.00021918,2]
[419749502,1775353864693,-151.0,0.00021918,2]
[419749503,1775353864703,-151.0,0.00021918,2]
[419749504,1775353864713,-151.0,0.00021918,2]
[419749505,1775353864723,-151.0,0.00021918,2]
[419749506,1775353864733,-151.0,0.00021918,2]
[419749507,1775353864743,-151.0,0.00021918,2]
[419749508,1775353864753,-151.0,0.00021918,2]
[419749509,1775353864763,-151.0,0.00021918,2]
[419749510,1775353865072,-151.0,0.00021918,2]
[419749511,1775353865104,-151.0,0.00021918,2]
[419749512,1775353865115,-151.0,0.00021918,2]
[419749513,1775353865125,-151.0,0.00021918,2]
[419749514,1775353865134,-151.0,0.00021918,2]
[419749515,1775353865144,-151.0,0.00021918,2]
[419749516,1775353865154,-151.0,0.00021918,2]
[419749517,1775353865164,-151.0,0.00021918,2]
[419749518,1775353865174,-151.0,0.00021918,2]
[419749519,1775353865184,-151.0,0.00021918,2]
[419749520,1775353865193,-151.0,0.00021918,2]
[419749521,1775353865203,-151.0,0.00021918,2]
[419749522,1775353865213,-151.0,0.00021918,2]
[419749523,1775353865223,-151.0,0.00021918,2]
[419749524,1775353865233,-151.0,0.00021918,2]
[419749525,1775353865242,-151.0,0.00021918,2]
[419749526,1775353865252,-151.0,0.00021918,2]
[419749527,1775353865262,-151.0,0.00021918,2]
[419749528,1775353865272,-151.0,0.00021918,2]
[419749529,1775353865282,-151.0,0.00021918,2]
[419749530,1775353865291,-151.0,0.00021918,2]
[419749531,1775353865300,-151.0,0.00021918,2]
[419749532,1775353865310,-151.0,0.00021918,2]
[419749533,1775353865320,-151.0,0.00021918,2]
[419749534,1775353865329,-151.0,0.00021918,2]
[419749535,1775353865338,-151.0,0.00021918,2]
[419749536,1775353865348,-151.0,0.00021918,2]
[419749537,1775353865357,-151.0,0.00021918,2]
[419749538,1775353865367,-151.0,0.00021918,2]
[419749539,1775353865377,-151.0,0.00021918,2]
[419749540,1775353865387,-151.0,0.00021918,2]
[419749541,1775353865397,-151.0,0.00021918,2]
[419749542,1775353865407,-151.0,0.00021918,2]
[419749543,1775353865417,-151.0,0.00021918,2]
[419749544,1775353865427,-151.0,0.00021918,2]
[419749545,1775353865436,-151.0,0.00021918,2]
[419749546,1775353865446,-151.0,0.00021918,2]
[419749547,1775353865457,-151.0,0.00021918,2]
[419749548,1775353865467,-151.0,0.00021918,2]
[419749549,1775353865477,-151.0,0.00021918,2]
[419749550,1775353865486,-151.0,0.00021918,2]
[419749551,1775353865496,-151.0,0.00021918,2]
[419749552,1775353865505,-151.0,0.00021918,2]
[419749553,1775353865514,-151.0,0.00021918,2]
[419749554,1775353865524,-151.0,0.00021918,2]
[419749555,1775353865533,-151.0,0.00021918,2]
[419749556,1775353865542,-151.0,0.00021918,2]
[419749557,1775353865552,-151.0,0.00021918,2]
[419749558,1775353865561,-151.0,0.00021918,2]
[419749559,1775353865571,-151.0,0.00021918,2]
[419749560,1775353865581,-151.0,0.00021918,2]
[419749561,1775353865592,-151.0,0.00021918,2]
[419749562,1775353865601,-151.0,0.00021918,2]
[419749563,1775353865611,-151.0,0.00021918,2]
[419749564,1775353865621,-151.0,0.00021918,2]
[419749565,1775353865631,-151.0,0.00021918,2]
[419749566,1775353865643,-151.0,0.00021918,2]
[419749567,1775353865653,-151.0,0.00021918,2]
[419749568,1775353865662,-151.0,0.00021918,2]
[419749569,1775353865672,-151.0,0.00021918,2]
[419749570,1775353865682,-151.0,0.00021918,2]
[419749571,1775353865691,-151.0,0.00021918,2]
[419749572,1775353865701,-151.0,0.00021918,2]
[419749573,1775353865710,-151.0,0.00021918,2]
[419749574,1775353865719,-151.0,0.00021918,2]
[419749575,1775353865728,-151.0,0.00021918,2]
[419749576,1775353865738,-151.0,0.00021918,2]
[419749577,1775353865747,-151.0,0.00021918,2]
[419749578,1775353865758,-151.0,0.00021918,2]
[419749579,1775353865768,-151.0,0.00021918,2]
[419749580,1775353865777,-151.0,0.00021918,2]
[419749581,1775353865787,-151.0,0.00021918,2]
[419749582,1775353865796,-151.0,0.00021918,2]
[419749583,1775353865805,-151.0,0.00021918,2]
[419749584,1775353865818,-151.0,0.00021918,2]
[419749585,1775353865828,-151.0,0.00021918,2]
[419749586,1775353865838,-151.0,0.00021918,2]
[419749587,1775353865848,-151.0,0.00021918,2]
[419749588,1775353865857,-151.0,0.00021918,2]
[419749589,1775353865867,-151.0,0.00021918,2]
[419749590,1775353865876,-151.0,0.00021918,2]
[419749591,1775353865886,-151.0,0.00021918,2]
[419749592,1775353865896,-151.0,0.00021918,2]
[419749593,1775353865905,-151.0,0.00021918,2]
[419749594,1775353865915,-650.0,0.00021918,2]
[419749595,1775353865925,-650.0,0.00021918,2]
[419749596,1775353865934,-150.0,0.00021918,2]
[419749597,1775353865944,-164.92,0.00022,2]
[419749598,1775353865954,-160.0,0.00022,2]
[419749599,1775353865964,-498.56701398,0.000221,2]
[419749600,1775353865973,-242.2922912,0.0002211,2]
[419749601,1775353865983,-1000.0,0.00022159,7]
[419749602,1775353865993,-1000.0,0.00022159,7]
[419749603,1775353866003,-500.0,0.00022444,10]
[419749604,1775353866013,-568.13296972,0.00022466,2]
[419749605,1775353866023,-750.0,0.00022466,2]
[419749606,1775353866033,-35805.88718564,0.000225,2]
[419749607,1775353866044,-150.0,0.00022589,2]
[419749608,1775353866053,-150.0,0.00022589,2]
[419749609,1775353866063,-150.0,0.00022589,2]
[419749610,1775353866074,-150.0,0.00022589,2]
[419749611,1775353866084,-3635.89451429,0.000226,2]
[419749612,1775353866094,-159.75,0.00022603,2]
[419749613,1775353866104,-164.0,0.0002264,3]
[419749614,1775353866115,-1892.77,0.00022661,2]
[419749615,1775353866124,-6898.01,0.00022661,2]
[419749616,1775353866134,-527.73016347,0.0002271,2]
[419749617,1775353866144,-12113.33,0.0002274,2]
[419749618,1775353866154,-4570.03,0.0002274,2]
[419749619,1775353866164,-873.0,0.000229,2]
[419749620,1775353866174,-1121.0,0.000229,2]
[419749621,1775353866184,-1892.0,0.000229,2]
[419749622,1775353866194,-947.0,0.000229,2]
[419749623,1775353866204,-473.0,0.000229,2]
[419749624,1775353866215,-432.0,0.000229,2]
[419749625,1775353866226,-153.0,0.000229,2]
[419749626,1775353866236,-1338.83,0.00022927,2]
[419749627,1775353866246,-250.0,0.00022948,4]
[419749628,1775353866256,-3352.90040425,0.00023,2]
[419749629,1775353866267,-129253.11197421,0.00023,2]
[419749630,1775353866277,-500.0,0.00023,2]
[419749631,1775353866287,-1511.02,0.00023013,2]
[419749632,1775353866297,-850.0,0.00023014,2]
[419749633,1775353866307,-1481.105408,0.00023268,2]
[419749634,1775353866316,-150.0,0.00023288,2]
[419749635,1775353866326,-14857.0,0.00023346,2]
[419749636,1775353866336,-500.0,0.00023397,2]
[419749637,1775353866346,-329.37048953,0.00023416,2]
[419749638,1775353866356,-1042.34752007,0.00023562,2]
[419749639,1775353866367,-3869.0,0.00023651,2]
[419749640,1775353866378,-150.19625878,0.000237,41]
[419749641,1775353866389,-1046.0,0.00023737,2]
[419749642,1775353866399,-622.0,0.00023737,2]
[419749643,1775353866410,-1347.0,0.00023737,2]
[419749644,1775353866420,-1263.0,0.00023737,2]
[419749645,1775353866430,-415.0,0.00023737,2]
[419749646,1775353866440,-3770.0,0.00023737,2]
[419749647,1775353866450,-2947.22249094,0.00023789,2]
[419749648,1775353866460,-2000.0,0.000238,2]
[419749649,1775353866470,-873.0,0.000239,2]
[419749650,1775353866479,-1121.0,0.000239,2]
[419749651,1775353866489,-1892.0,0.000239,2]
[419749652,1775353866501,-947.0,0.000239,2]
[419749653,1775353866510,-473.0,0.000239,2]
[419749654,1775353866520,-432.0,0.000239,2]
[419749655,1775353866529,-161.00428906,0.000239,2]
[419749656,1775353866539,-209.19812795,0.00023909,2]
[419749657,1775353866549,-28192.14363459,0.0002391,2]
[419749658,1775353866559,-500.0,0.00024,11]
[419749659,1775353866569,-750.0,0.00024151,2]
[419749660,1775353866579,-900.0,0.00024151,2]
[419749661,1775353866588,-300.0,0.00024151,2]
[419749662,1775353866598,-150.0,0.00024151,7]
[419749663,1775353866608,-169.79831144,0.0002465,2]
[419749664,1775353866619,-550.42,0.00024658,2]
[419749665,1775353866628,-151.0,0.00024658,2]
[419749666,1775353866639,-166.446933,0.00024658,2]
[419749667,1775353866649,-1000.0,0.00024658,2]
[419749668,1775353866659,-150.0,0.00024658,2]
[419749669,1775353866668,-150.0,0.00024658,2]
[419749670,1775353866678,-173.71,0.00024658,30]
[419749671,1775353866688,-167.51,0.00024658,2]
[419749672,1775353866698,-3376.65298995,0.00024695,2]
[419749673,1775353866709,-176.857268,0.00024897,7]
[419749674,1775353866718,-150.0,0.00024899,2]
[419749675,1775353866728,-150.0,0.00024899,2]
[419749676,1775353866738,-150.0,0.00024899,2]
[419749677,1775353866747,-150.0,0.00024899,2]
[419749678,1775353866757,-150.0,0.00024899,2]
[419749679,1775353866766,-150.0,0.00024899,2]
[419749680,1775353866776,-150.0,0.00024899,2]
[419749681,1775353866786,-150.0,0.00024899,2]
[419749682,1775353866795,-150.0,0.00024899,2]
[419749683,1775353866805,-243.89669454,0.00024899,2]
[419749684,1775353866815,-151.0,0.000249,2]
[419749685,1775353866824,-151.0,0.000249,2]
[419749686,1775353866834,-151.0,0.000249,2]
[419749687,1775353866843,-151.0,0.000249,2]
[419749688,1775353866852,-151.0,0.000249,2]
[419749689,1775353866863,-151.0,0.000249,2]
[419749690,1775353866873,-151.0,0.000249,2]
[419749691,1775353866885,-152.794028,0.000249,2]
[419749692,1775353866895,-873.0,0.000249,2]
[419749693,1775353866905,-1121.0,0.000249,2]
[419749694,1775353866916,-1892.0,0.000249,2]
[419749695,1775353866928,-947.0,0.000249,2]
[419749696,1775353866937,-473.0,0.000249,2]
[419749697,1775353866947,-151.0,0.000249,2]
[419749698,1775353866956,-151.0,0.000249,2]
[419749699,1775353866968,-151.0,0.000249,2]
[419749700,1775353866979,-156.571505,0.000249,2]
[419749701,1775353866989,-156.571505,0.000249,2]
[419749702,1775353866998,-156.571505,0.000249,2]
[419749703,1775353867008,-156.571505,0.000249,2]
[419749704,1775353867018,-480418.862734,0.000249,2]
[419749705,1775353867027,-432.0,0.000249,2]
[419749706,1775353867038,-10069.22725025,0.00025,2]
[419749707,1775353867048,-300.0,0.00025,3]
[419749708,1775353867058,-550.0,0.00025,2]
[419749709,1775353867068,-8225.0,0.00025045,2]
[419749710,1775353867079,-1572.0,0.0002506,3]
[419749711,1775353867089,-1338.83,0.0002509,2]
[419749712,1775353867098,-500.0,0.00025102,120]
[419749713,1775353867108,-2576.54,0.00025109,2]
[419749714,1775353867118,-5000.0,0.00025184,2]
[419749715,1775353867128,-5000.0,0.000252,2]
[419749716,1775353867138,-5000.0,0.000252,2]
[419749717,1775353867149,-150.0,0.00025223,11]
[419749718,1775353867158,-162.0,0.0002528,3]
[419749719,1775353867168,-162.0,0.0002528,3]
[419749720,1775353867177,-383.72,0.00025323,30]
[419749721,1775353867186,-825.0,0.00025328,30]
[419749722,1775353867196,-35504.59867692,0.0002539,2]
[419749723,1775353867206,-151.0,0.0002539,2]
[419749724,1775353867215,-166.9154566,0.00025397,2]
[419749725,1775353867225,-3869.0,0.00025454,2]
[419749726,1775353867235,-1453.64,0.00025479,2]
[419749727,1775353867245,-500.0,0.00025555,12]
[419749728,1775353867255,-150.0,0.00025589,2]
[419749729,1775353867265,-250.0,0.00025648,6]
[419749730,1775353867275,-150.0,0.0002589,2]
[419749731,1775353867284,-891.23320441,0.000259,2]
[419749732,1775353867294,-1121.81390368,0.000259,2]
[419749733,1775353867304,-1907.19881219,0.000259,2]
[419749734,1775353867313,-951.02739996,0.000259,2]
[419749735,1775353867323,-489.57205333,0.000259,2]
[419749736,1775353867333,-451.23993792,0.000259,2]
[419749737,1775353867343,-605.27393075,0.0002599,2]
[419749738,1775353867352,-4556.46070023,0.00026,2]
[419749739,1775353867362,-218.06245168,0.00026,2]
[419749740,1775353867371,-878.0,0.00026,2]
[419749741,1775353867380,-306.0,0.00026,2]
[419749742,1775353867390,-1000.0,0.00026,2]
[419749743,1775353867400,-313.0,0.00026,2]
[419749744,1775353867410,-162.0,0.0002602,3]
[419749745,1775353867420,-500.0,0.00026027,2]
[419749746,1775353867431,-500.0,0.00026027,2]
[419749747,1775353867441,-420.0,0.00026027,2]
[419749748,1775353867452,-200.0,0.00026027,2]
[419749749,1775353867462,-200.0,0.00026027,2]
[419749750,1775353867473,-197.0,0.00026027,2]
[419749751,1775353867483,-350.0,0.00026027,2]
[419749752,1775353867493,-350.0,0.00026027,2]
[419749753,1775353867503,-215.0,0.00026027,2]
[419749754,1775353867512,-150.0,0.00026028,2]
[419749755,1775353867522,-1048.51955549,0.000263,2]
[419749756,1775353867531,-162.0,0.0002634,3]
[419749757,1775353867541,-166.9154566,0.00026397,2]
[419749758,1775353867550,-228.8574559,0.00026397,2]
[419749759,1775353867659,-271.99290588,0.00026397,2]
[419749760,1775353867668,-27696.27596647,0.000264,2]
[419749761,1775353867678,-200.0,0.000265,3]
[419749762,1775353867687,-1046.0,0.00026737,2]
[419749763,1775353867696,-622.0,0.00026737,2]
[419749764,1775353867706,-1263.0,0.00026737,2]
[419749765,1775353867715,-415.0,0.00026737,2]
[419749766,1775353867724,-3770.0,0.00026737,2]
[419749767,1775353867733,-800.0,0.00026986,120]
[419749768,1775353867742,-800.0,0.00026986,120]
[419749769,1775353867752,-250.0,0.00027,2]
[419749770,1775353867762,-1042.55638703,0.00027,2]
[419749771,1775353867771,-530.0,0.00027,2]
[419749772,1775353867780,-2000.0,0.00027,2]
[419749773,1775353867789,-2261.4,0.00027,30]
[419749774,1775353867799,-1032.71,0.00027,30]
[419749775,1775353867808,-197.84173253,0.00027,2]
[419749776,1775353867819,-600.0,0.00027,2]
[419749777,1775353867828,-173.51143709,0.00027,2]
[419749778,1775353867837,-529.0165523,0.00027,2]
[419749779,1775353867847,-153.73331595,0.00027,2]
[419749780,1775353867857,-366.11777504,0.00027,2]
[419749781,1775353867866,-297.55436923,0.00027,2]
[419749782,1775353867875,-2533.58455,0.0002701,2]
[419749783,1775353867884,-1262.02,0.00027068,2]
[419749784,1775353867893,-500.0,0.00027111,14]
[419749785,1775353867902,-3719.71,0.00027123,2]
[419749786,1775353867912,-1481.105408,0.00027145,2]
[419749787,1775353867924,-150.0,0.00027185,2]
[419749788,1775353867933,-1338.83,0.00027253,2]
[419749789,1775353867944,-3869.0,0.00027257,2]
[419749790,1775353867956,-825.0,0.00027294,30]
[419749791,1775353867967,-286.61197801,0.000273,30]
[419749792,1775353867976,-286.611978,0.000273,30]
[419749793,1775353867985,-580.15384615,0.0002737,2]
[419749794,1775353867994,-1014.92307692,0.0002737,2]
[419749795,1775353868003,-1150.38461538,0.0002737,2]
[419749796,1775353868012,-546.23076923,0.0002737,2]
[419749797,1775353868022,-677.30769231,0.0002737,2]
[419749798,1775353868031,-499.15384615,0.0002737,2]
[419749799,1775353868041,-965.07692308,0.0002737,2]
[419749800,1775353868051,-695.53846154,0.0002737,2]
[419749801,1775353868060,-1016.30769231,0.0002737,2]
[419749802,1775353868070,-1018.84615385,0.0002737,2]
[419749803,1775353868080,-791.53846154,0.0002737,2]
[419749804,1775353868090,-724.84615385,0.0002737,2]
[419749805,1775353868100,-491.33856988,0.0002737,2]
[419749806,1775353868109,-4143.63904025,0.0002739,2]
[419749807,1775353868118,-8185.87052245,0.0002739,2]
[419749808,1775353868129,-187.10357558,0.00027397,7]
[419749809,1775353868138,-276.08795588,0.00027397,2]
[419749810,1775353868148,-2000.0,0.00027397,2]
[419749811,1775353868157,-1697.77163391,0.00027397,2]
[419749812,1775353868167,-1981.80648635,0.00027397,120]
[419749813,1775353868176,-256.53568748,0.00027397,7]
[419749814,1775353868185,-150.0,0.00027397,7]
[419749815,1775353868195,-300.0,0.00027397,2]
[419749816,1775353868204,-523.75,0.00027397,2]
[419749817,1775353868214,-550.42,0.00027397,2]
[419749818,1775353868223,-168.459967,0.00027397,2]
[419749819,1775353868233,-1000.0,0.00027397,20]
[419749820,1775353868242,-222.55394214,0.00027397,7]
[419749821,1775353868251,-164.01451004,0.00027397,7]
[419749822,1775353868262,-167.0,0.00027397,2]
[419749823,1775353868272,-167.0,0.00027397,2]
[419749824,1775353868281,-167.0,0.00027397,2]
[419749825,1775353868291,-167.0,0.00027397,2]
[419749826,1775353868301,-167.0,0.00027397,2]
[419749827,1775353868310,-167.0,0.00027397,2]
[419749828,1775353868320,-167.0,0.00027397,2]
[419749829,1775353868329,-184.34565234,0.00027397,2]
[419749830,1775353868338,-150.0,0.00027397,2]
[419749831,1775353868347,-186.01,0.00027434,30]
[419749832,1775353868356,-186.01,0.00027434,30]
[419749833,1775353868366,-186.01,0.00027434,30]
[419749834,1775353868375,-202.89866626,0.000275,2]
[419749835,1775353868384,-554.18720858,0.000275,2]
[419749836,1775353868394,-200.0,0.000275,5]
[419749837,1775353868403,-2000.0,0.000275,2]
[419749838,1775353868412,-500.0,0.00027612,120]
[419749839,1775353868422,-1453.70222906,0.00027671,7]
[419749840,1775353868431,-152.0,0.00027677,3]
[419749841,1775353868441,-2000.0,0.00027945,2]
[419749842,1775353868451,-186.01,0.00027982,30]
[419749843,1775353868460,-186.01,0.00027982,30]
[419749844,1775353868470,-186.01,0.00027982,30]
[419749845,1775353868480,-160.0,0.00028,2]
[419749846,1775353868490,-643.0,0.00028,2]
[419749847,1775353868501,-51283.11491151,0.00028,2]
[419749848,1775353868512,-160.0,0.00028,7]
[419749849,1775353868523,-250.0,0.00028034,10]
[419749850,1775353868534,-159.75,0.00028493,2]
[419749851,1775353868545,-2000.0,0.00028493,2]
[419749852,1775353868556,-186.01,0.0002853,30]
[419749853,1775353868565,-186.01,0.0002853,30]
[419749854,1775353868574,-186.01,0.0002853,30]
[419749855,1775353868584,-150.0,0.00028544,2]
[419749856,1775353868593,-1000.0,0.00028558,120]
[419749857,1775353868603,-797.37,0.00028558,120]
[419749858,1775353868612,-500.0,0.00028667,15]
[419749859,1775353868621,-269.44126618,0.0002874,120]
[419749860,1775353868631,-150.20039711,0.0002874,120]
[419749861,1775353868640,-1396.26,0.00028766,2]
[419749862,1775353868649,-498.90457918,0.00028767,2]
[419749863,1775353868659,-150.0,0.00028767,2]
[419749864,1775353868669,-895.07656581,0.00028813,20]
[419749865,1775353868679,-1207.78121921,0.00028813,20]
[419749866,1775353868688,-1262.02,0.00028841,2]
[419749867,1775353868698,-383.72,0.00028928,30]
[419749868,1775353868708,-506.65189645,0.00029,2]
[419749869,1775353868718,-891.36247513,0.00029,120]
[419749870,1775353868727,-1755.86250814,0.00029,2]
[419749871,1775353868739,-650.0,0.00029,2]
[419749872,1775353868750,-2000.0,0.00029041,2]
[419749873,1775353868759,-3869.0,0.0002906,2]
[419749874,1775353868769,-825.0,0.0002926,60]
[419749875,1775353868779,-1338.83,0.00029416,2]
[419749876,1775353868788,-1000.0,0.00029569,7]
[419749877,1775353868798,-202.23030108,0.00029674,14]
[419749878,1775353868808,-622.0,0.00029737,2]
[419749879,1775353868818,-1263.0,0.00029737,2]
[419749880,1775353868829,-415.0,0.00029737,2]
[419749881,1775353868839,-3770.0,0.00029737,2]
[419749882,1775353868849,-274.0,0.0002982,3]
[419749883,1775353868858,-79625.63726499,0.000299,2]
[419749884,1775353868868,-186.01,0.000299,30]
[419749885,1775353868878,-186.01,0.000299,30]
[419749886,1775353868888,-186.01,0.000299,30]
[419749887,1775353868898,-150.0,0.00029971,2]
[419749888,1775353868907,-239.44521924,0.0002999,2]
[419749889,1775353868917,-160.66627167,0.0003,2]
[419749890,1775353868927,-322.29631739,0.0003,2]
[419749891,1775353868937,-1834.98910687,0.0003,2]
[419749892,1775353868947,-164.56403412,0.0003,2]
[419749893,1775353868957,-1006.70655444,0.0003,2]
[419749894,1775353868968,-150.0,0.0003,2]
[419749895,1775353868979,-363.77908023,0.0003,30]
[419749896,1775353868990,-363.77908023,0.0003,30]
[419749897,1775353869001,-18623.22674231,0.0003,2]
[419749898,1775353869010,-20055.70934701,0.0003,2]
[419749899,1775353869020,-300.0,0.0003,30]
[419749900,1775353869029,-300.0,0.0003,3]
[419749901,1775353869038,-160.0,0.0003,30]
[419749902,1775353869048,-1028.66,0.0003,30]
[419749903,1775353869058,-200.0,0.000301,5]
[419749904,1775353869068,-160.06,0.00030103,13]
[419749905,1775353869077,-160.05,0.00030103,13]
[419749906,1775353869086,-159.34,0.00030103,13]
[419749907,1775353869095,-159.34,0.00030103,13]
[419749908,1775353869104,-159.32,0.00030103,13]
[419749909,1775353869114,-500.0,0.00030121,120]
[419749910,1775353869123,-1084.00587492,0.0003013,2]
[419749911,1775353869132,-640.22794746,0.0003013,2]
[419749912,1775353869141,-203.67246391,0.0003013,2]
[419749913,1775353869151,-13984.21530437,0.0003013,2]
[419749914,1775353869160,-7805.11546176,0.0003013,2]
[419749915,1775353869169,-1000.0,0.00030137,120]
[419749916,1775353869191,-550.42,0.00030137,2]
[419749917,1775353869203,-500.0,0.00030137,120]
[419749918,1775353869213,-500.0,0.00030137,2]
[419749919,1775353869223,-500.0,0.00030137,2]
[419749920,1775353869234,-420.0,0.00030137,2]
[419749921,1775353869243,-350.0,0.00030137,2]
[419749922,1775353869254,-350.0,0.00030137,2]
[419749923,1775353869265,-343.0,0.00030137,2]
[419749924,1775353869275,-200.0,0.00030137,2]
[419749925,1775353869285,-200.0,0.00030137,2]
[419749926,1775353869295,-197.0,0.00030137,2]
[419749927,1775353869305,-350.0,0.00030137,2]
[419749928,1775353869315,-350.0,0.00030137,2]
[419749929,1775353869325,-333.0,0.00030137,2]
[419749930,1775353869335,-350.0,0.00030137,2]
[419749931,1775353869346,-350.0,0.00030137,2]
[419749932,1775353869356,-215.0,0.00030137,2]
[419749933,1775353869365,-350.0,0.00030137,2]
[419749934,1775353869375,-350.0,0.00030137,2]
[419749935,1775353869385,-334.0,0.00030137,2]
[419749936,1775353869395,-150.0,0.00030137,2]
[419749937,1775353869405,-250.0,0.00030143,15]
[419749938,1775353869415,-15684.16148833,0.000302,2]
[419749939,1775353869425,-500.0,0.00030222,16]
[419749940,1775353869435,-414.4,0.00030411,120]
[419749941,1775353869444,-162.0,0.0003046,3]
[419749942,1775353869454,-1028.66,0.00030469,30]
[419749943,1775353869464,-1262.02,0.00030615,2]
[419749944,1775353869474,-159.34,0.00030651,13]
[419749945,1775353869485,-159.34,0.00030651,13]
[419749946,1775353869495,-159.32,0.00030651,13]
[419749947,1775353869505,-1624.55415,0.0003084,2]
[419749948,1775353869515,-3869.0,0.00030864,2]
[419749949,1775353869524,-1028.66,0.00030937,30]